[Event "Live Chess"]
[Site "Chess.com"]
[Date "2024.06.01"]
[Round "-"]
[White "Dhaydon19"]
[Black "Mangoalo"]
[Result "1-0"]
[WhiteElo "2682"]
[BlackElo "1009"]
[TimeControl "300"]
[EndTime "11:20:51 PDT"]
[Termination "Dhaydon19 won by checkmate"]

1. d4 {[%clk 0:04:58.2]} 1... Nc6 {[%clk 0:04:59.9]} 2. Nf3 {[%clk 0:04:55.9]}
2... d5 {[%clk 0:04:58.2]} 3. g3 {[%clk 0:04:55.1]} 3... Bg4 {[%clk 0:04:57.5]}
4. c3 {[%clk 0:04:54.5]} 4... Nf6 {[%clk 0:04:56.6]} 5. Bg2 {[%clk 0:04:53.4]}
5... e6 {[%clk 0:04:55.8]} 6. O-O {[%clk 0:04:52.3]} 6... Bd6 {[%clk 0:04:55.3]}
7. Nbd2 {[%clk 0:04:51.8]} 7... O-O {[%clk 0:04:54.5]} 8. Re1 {[%clk 0:04:51.2]}
8... h6 {[%clk 0:04:53.5]} 9. Qc2 {[%clk 0:04:49.8]} 9... Bf5 {[%clk 0:04:51.3]}
10. Qb3 {[%clk 0:04:48.4]} 10... b6 {[%clk 0:04:48.4]} 11. Nh4 {[%clk 0:04:46]}
11... Na5 {[%clk 0:04:47.5]} 12. Qa4 {[%clk 0:04:44.1]} 12... Bh7 {[%clk
0:04:42.3]} 13. Nhf3 {[%clk 0:04:36.1]} 13... Ne4 {[%clk 0:04:30.6]} 14. Ne5
{[%clk 0:04:32.3]} 14... Bxe5 {[%clk 0:04:29.1]} 15. dxe5 {[%clk 0:04:31.2]}
15... Qe8 {[%clk 0:04:18]} 16. Qd4 {[%clk 0:04:25.2]} 16... Nc6 {[%clk
0:04:11.5]} 17. Qe3 {[%clk 0:03:56.3]} 17... f5 {[%clk 0:03:58.4]} 18. exf6
{[%clk 0:03:54.4]} 18... Rxf6 {[%clk 0:03:55.4]} 19. Nxe4 {[%clk 0:03:53]} 19...
dxe4 {[%clk 0:03:55.3]} 20. Bxe4 {[%clk 0:03:52]} 20... Bxe4 {[%clk 0:03:52.7]}
21. Qxe4 {[%clk 0:03:51.6]} 21... Rd8 {[%clk 0:03:26]} 22. Be3 {[%clk
0:03:49.7]} 22... Qd7 {[%clk 0:03:17.5]} 23. Rad1 {[%clk 0:03:43.4]} 23... Qc8
{[%clk 0:02:59.5]} 24. Qxc6 {[%clk 0:03:41.7]} 24... Rxd1 {[%clk 0:02:57]} 25.
Rxd1 {[%clk 0:03:40]} 25... Kh7 {[%clk 0:02:53.6]} 26. Bf4 {[%clk 0:03:35.9]}
26... Rxf4 {[%clk 0:02:38.8]} 27. gxf4 {[%clk 0:03:34]} 27... e5 {[%clk
0:02:34]} 28. Qd7 {[%clk 0:03:30.9]} 28... Qf8 {[%clk 0:02:27.8]} 29. f5 {[%clk
0:03:29.7]} 29... Qf6 {[%clk 0:02:24.2]} 30. Qe6 {[%clk 0:03:28.8]} 30... Qg5+
{[%clk 0:02:22.8]} 31. Kh1 {[%clk 0:03:28.1]} 31... Qf4 {[%clk 0:02:18.3]} 32.
Qg6+ {[%clk 0:03:26.5]} 32... Kh8 {[%clk 0:02:16.8]} 33. Rd8# {[%clk 0:03:24.4]}
1-0

[Event "Live Chess"]
[Site "Chess.com"]
[Date "2024.06.01"]
[Round "-"]
[White "asingardenof"]
[Black "EgbertIII"]
[Result "0-1"]
[WhiteElo "619"]
[BlackElo "1445"]
[TimeControl "300"]
[EndTime "11:21:02 PDT"]
[Termination "EgbertIII won by checkmate"]

1. e4 {[%clk 0:04:55.2]} 1... c6 {[%clk 0:04:58.2]} 2. Nc3 {[%clk 0:04:52.6]}
2... d5 {[%clk 0:04:57]} 3. d3 {[%clk 0:04:48.9]} 3... d4 {[%clk 0:04:53.7]} 4.
Nce2 {[%clk 0:04:46.3]} 4... e5 {[%clk 0:04:52.3]} 5. Nf3 {[%clk 0:04:44.1]}
5... Nd7 {[%clk 0:04:48]} 6. g3 {[%clk 0:04:40]} 6... Ngf6 {[%clk 0:04:44.4]} 7.
Bd2 {[%clk 0:04:33.8]} 7... Bd6 {[%clk 0:04:42.6]} 8. c4 {[%clk 0:04:29.8]} 8...
O-O {[%clk 0:04:39]} 9. Bh3 {[%clk 0:04:24.7]} 9... Nb6 {[%clk 0:04:35.1]} 10.
b3 {[%clk 0:04:19.3]} 10... Bxh3 {[%clk 0:04:32.8]} 11. Nfg1 {[%clk 0:04:12.3]}
11... Bg2 {[%clk 0:04:29.5]} 12. Bg5 {[%clk 0:03:53.5]} 12... Bxh1 {[%clk
0:04:24]} 13. f3 {[%clk 0:03:51.9]} 13... h6 {[%clk 0:04:20]} 14. Bh4 {[%clk
0:03:49.9]} 14... g5 {[%clk 0:04:14.5]} 15. Bxg5 {[%clk 0:03:46.7]} 15... hxg5
{[%clk 0:04:13.5]} 16. Qc2 {[%clk 0:03:46.3]} 16... Kg7 {[%clk 0:04:08.2]} 17.
Nh3 {[%clk 0:03:40.1]} 17... Bxf3 {[%clk 0:04:00.3]} 18. Nxg5 {[%clk 0:03:36.5]}
18... Bg4 {[%clk 0:03:44.1]} 19. O-O-O {[%clk 0:03:34.2]} 19... Ba3+ {[%clk
0:03:41.5]} 20. Kb1 {[%clk 0:03:32.3]} 20... Rh8 {[%clk 0:03:36.9]} 21. h4
{[%clk 0:03:22.8]} 21... Nh7 {[%clk 0:03:18.2]} 22. Qd2 {[%clk 0:03:03.8]} 22...
Nxg5 {[%clk 0:03:13.4]} 23. hxg5 {[%clk 0:03:02.3]} 23... Rh2 {[%clk 0:03:03.9]}
24. Re1 {[%clk 0:02:56.3]} 24... Rxe2 {[%clk 0:02:56.9]} 25. Rxe2 {[%clk
0:02:53.9]} 25... Bxe2 {[%clk 0:02:55.7]} 26. Qxe2 {[%clk 0:02:53.8]} 26... Qxg5
{[%clk 0:02:53.5]} 27. Qc2 {[%clk 0:02:36.4]} 27... Rh8 {[%clk 0:02:47.7]} 28.
Qc1 {[%clk 0:02:36.3]} 28... Qxc1# {[%clk 0:02:44.9]} 0-1

[Event "Live Chess"]
[Site "Chess.com"]
[Date "2024.06.01"]
[Round "-"]
[White "elephantgerrald"]
[Black "dhairyapandyauk"]
[Result "0-1"]
[WhiteElo "756"]
[BlackElo "1717"]
[TimeControl "300"]
[EndTime "11:21:05 PDT"]
[Termination "dhairyapandyauk won by checkmate"]

1. e4 {[%clk 0:04:57.7]} 1... e5 {[%clk 0:04:59.1]} 2. Nf3 {[%clk 0:04:55]} 2...
Nc6 {[%clk 0:04:58.3]} 3. Nc3 {[%clk 0:04:53.9]} 3... Bc5 {[%clk 0:04:57.4]} 4.
Bc4 {[%clk 0:04:53]} 4... d6 {[%clk 0:04:56.7]} 5. O-O {[%clk 0:04:51.9]} 5...
Bg4 {[%clk 0:04:55.8]} 6. h3 {[%clk 0:04:50]} 6... Bh5 {[%clk 0:04:55.1]} 7. g4
{[%clk 0:04:48.7]} 7... Bg6 {[%clk 0:04:54.4]} 8. d3 {[%clk 0:04:47.8]} 8... Nf6
{[%clk 0:04:53.1]} 9. Bd2 {[%clk 0:04:46.9]} 9... O-O {[%clk 0:04:44.6]} 10. Kh2
{[%clk 0:04:45.8]} 10... h6 {[%clk 0:04:40.7]} 11. g5 {[%clk 0:04:41.6]} 11...
hxg5 {[%clk 0:04:39.5]} 12. Bxg5 {[%clk 0:04:40.5]} 12... Qd7 {[%clk 0:04:29.6]}
13. a3 {[%clk 0:04:36.4]} 13... Nh7 {[%clk 0:04:28.1]} 14. Bh4 {[%clk
0:04:32.5]} 14... Bh5 {[%clk 0:04:27]} 15. Bg3 {[%clk 0:04:25.8]} 15... Nd4
{[%clk 0:04:25.7]} 16. Bb5 {[%clk 0:04:11.1]} 16... c6 {[%clk 0:04:20.1]} 17.
Bc4 {[%clk 0:04:06.9]} 17... Nxf3+ {[%clk 0:04:18.5]} 18. Kh1 {[%clk 0:03:57.4]}
18... Qxh3+ {[%clk 0:04:16.9]} 19. Bh2 {[%clk 0:03:51.4]} 19... Qxh2# {[%clk
0:04:16.8]} 0-1

[Event "Live Chess"]
[Site "Chess.com"]
[Date "2024.06.01"]
[Round "-"]
[White "educatedlad"]
[Black "PureDashingOctopus"]
[Result "0-1"]
[WhiteElo "1770"]
[BlackElo "2246"]
[TimeControl "300"]
[EndTime "11:21:07 PDT"]
[Termination "PureDashingOctopus won by resignation"]

1. d4 {[%clk 0:04:59.2]} 1... Nf6 {[%clk 0:04:58.3]} 2. Bg5 {[%clk 0:04:59.1]}
2... g6 {[%clk 0:04:56.7]} 3. Bxf6 {[%clk 0:04:58.3]} 3... exf6 {[%clk
0:04:56.6]} 4. c4 {[%clk 0:04:57.6]} 4... f5 {[%clk 0:04:55.9]} 5. Nc3 {[%clk
0:04:57.5]} 5... Bg7 {[%clk 0:04:55.3]} 6. e3 {[%clk 0:04:57.2]} 6... O-O {[%clk
0:04:54.9]} 7. g3 {[%clk 0:04:56.1]} 7... d6 {[%clk 0:04:54.4]} 8. Bg2 {[%clk
0:04:55.6]} 8... Nd7 {[%clk 0:04:53.9]} 9. Nge2 {[%clk 0:04:55.2]} 9... Nf6
{[%clk 0:04:53.5]} 10. Qc2 {[%clk 0:04:54.2]} 10... c6 {[%clk 0:04:53]} 11. b3
{[%clk 0:04:53.5]} 11... d5 {[%clk 0:04:52.5]} 12. O-O {[%clk 0:04:49.6]} 12...
Be6 {[%clk 0:04:50.7]} 13. Nf4 {[%clk 0:04:48.3]} 13... dxc4 {[%clk 0:04:48.6]}
14. Nxe6 {[%clk 0:04:47.5]} 14... fxe6 {[%clk 0:04:48.5]} 15. bxc4 {[%clk
0:04:45.9]} 15... Nd7 {[%clk 0:04:47.7]} 16. Rad1 {[%clk 0:04:43.1]} 16... Qc7
{[%clk 0:04:46]} 17. d5 {[%clk 0:04:40.1]} 17... cxd5 {[%clk 0:04:44.2]} 18. Nb5
{[%clk 0:04:37.6]} 18... Qc5 {[%clk 0:04:41.1]} 19. Qa4 {[%clk 0:04:33.3]} 19...
Nb6 {[%clk 0:04:39.2]} 20. Qc2 {[%clk 0:04:24.6]} 20... Nxc4 {[%clk 0:04:38.1]}
21. Nd4 {[%clk 0:04:22]} 21... Bxd4 {[%clk 0:04:36.6]} 22. exd4 {[%clk
0:04:20.6]} 22... Qd6 {[%clk 0:04:34.5]} 23. Rfe1 {[%clk 0:04:18.6]} 23... Rac8
{[%clk 0:04:33]} 24. Qb3 {[%clk 0:04:17.1]} 24... Rc7 {[%clk 0:04:30.2]} 25. Rc1
{[%clk 0:04:12.7]} 25... Rfc8 {[%clk 0:04:27.4]} 26. a4 {[%clk 0:04:09.1]} 26...
Na5 {[%clk 0:04:25.7]} 27. Rxc7 {[%clk 0:04:04.5]} 27... Rxc7 {[%clk 0:04:25.6]}
28. Qb5 {[%clk 0:04:02.6]} 28... b6 {[%clk 0:04:23.7]} 29. Qe8+ {[%clk
0:04:00.9]} 29... Kg7 {[%clk 0:04:22]} 30. Rxe6 {[%clk 0:03:59.5]} 30... Qd7
{[%clk 0:04:07.2]} 31. Qxd7+ {[%clk 0:03:50.5]} 31... Rxd7 {[%clk 0:04:07.1]}
32. Re5 {[%clk 0:03:48.2]} 32... Nc6 {[%clk 0:04:03.1]} 33. Rxd5 {[%clk
0:03:45.5]} 33... Rxd5 {[%clk 0:04:02.4]} 34. Bxd5 {[%clk 0:03:45.2]} 34... Nxd4
{[%clk 0:04:01.8]} 35. Kf1 {[%clk 0:03:44.2]} 35... Kf6 {[%clk 0:04:00.8]} 36.
Ke1 {[%clk 0:03:42.9]} 36... Ke5 {[%clk 0:04:00.4]} 37. Bg8 {[%clk 0:03:40.4]}
37... h6 {[%clk 0:03:59.2]} 38. Bf7 {[%clk 0:03:38.9]} 38... g5 {[%clk
0:03:58.4]} 39. Kd2 {[%clk 0:03:36.8]} 39... Nf3+ {[%clk 0:03:57]} 40. Ke3
{[%clk 0:03:36.1]} 40... Nxh2 {[%clk 0:03:56.2]} 41. f4+ {[%clk 0:03:33]} 41...
gxf4+ {[%clk 0:03:55.4]} 42. gxf4+ {[%clk 0:03:32.3]} 42... Kf6 {[%clk
0:03:54.4]} 43. Bd5 {[%clk 0:03:29.7]} 43... Ng4+ {[%clk 0:03:53.5]} 44. Kd4
{[%clk 0:03:28.4]} 44... h5 {[%clk 0:03:50.4]} 45. Kc4 {[%clk 0:03:27.8]} 45...
Ne3+ {[%clk 0:03:48.9]} 46. Kd4 {[%clk 0:03:25.8]} 46... Nxd5 {[%clk 0:03:48.4]}
47. Kxd5 {[%clk 0:03:25.7]} 47... h4 {[%clk 0:03:47.6]} 48. Kc6 {[%clk
0:03:25.6]} 48... h3 {[%clk 0:03:47.5]} 49. Kb7 {[%clk 0:03:25.5]} 49... h2
{[%clk 0:03:47.4]} 50. Kxa7 {[%clk 0:03:24.7]} 50... h1=Q {[%clk 0:03:47.1]} 51.
Kxb6 {[%clk 0:03:24.4]} 51... Qe4 {[%clk 0:03:46.6]} 52. a5 {[%clk 0:03:24.3]}
52... Qxf4 {[%clk 0:03:46.2]} 53. a6 {[%clk 0:03:24.2]} 53... Qe3+ {[%clk
0:03:44.7]} 54. Kb7 {[%clk 0:03:23.6]} 54... f4 {[%clk 0:03:44.2]} 55. a7 {[%clk
0:03:23.1]} 55... Qxa7+ {[%clk 0:03:43.7]} 56. Kxa7 {[%clk 0:03:22.4]} 56... f3
{[%clk 0:03:43.6]} 0-1

[Event "Live Chess"]
[Site "Chess.com"]
[Date "2024.06.01"]
[Round "-"]
[White "Sokolik_UA"]
[Black "KwikPhoenix"]
[Result "0-1"]
[WhiteElo "803"]
[BlackElo "2439"]
[TimeControl "300"]
[EndTime "11:21:15 PDT"]
[Termination "KwikPhoenix won by resignation"]

1. e4 {[%clk 0:04:57.1]} 1... e5 {[%clk 0:04:59.9]} 2. d4 {[%clk 0:04:56.2]}
2... exd4 {[%clk 0:04:58.5]} 3. Qxd4 {[%clk 0:04:55.8]} 3... Nc6 {[%clk
0:04:57.9]} 4. Qe3 {[%clk 0:04:55.2]} 4... g6 {[%clk 0:04:56]} 5. Nc3 {[%clk
0:04:54.9]} 5... Bg7 {[%clk 0:04:55.4]} 6. Bd2 {[%clk 0:04:54.2]} 6... Nge7
{[%clk 0:04:54.7]} 7. f3 {[%clk 0:04:52.6]} 7... d6 {[%clk 0:04:54.5]} 8. Bc4
{[%clk 0:04:51.7]} 8... Be6 {[%clk 0:04:54]} 9. Bxe6 {[%clk 0:04:50]} 9... fxe6
{[%clk 0:04:53.9]} 10. Nge2 {[%clk 0:04:48.8]} 10... Qd7 {[%clk 0:04:53.4]} 11.
O-O {[%clk 0:04:45.7]} 11... O-O-O {[%clk 0:04:52.8]} 12. a4 {[%clk 0:04:44.6]}
12... d5 {[%clk 0:04:50.5]} 13. exd5 {[%clk 0:04:41.1]} 13... exd5 {[%clk
0:04:49.7]} 14. Nb5 {[%clk 0:04:37.7]} 14... a6 {[%clk 0:04:45.8]} 15. b3 {[%clk
0:04:30.4]} 15... Bxa1 {[%clk 0:04:42.8]} 16. Rxa1 {[%clk 0:04:28.9]} 16... d4
{[%clk 0:04:41]} 17. Nexd4 {[%clk 0:04:24.9]} 17... Nxd4 {[%clk 0:04:38.1]} 18.
Nxd4 {[%clk 0:04:23.1]} 18... Qxd4 {[%clk 0:04:37.5]} 19. Kf2 {[%clk 0:04:08.1]}
19... Qxa1 {[%clk 0:04:33.2]} 20. Qxe7 {[%clk 0:04:06.6]} 20... Rxd2+ {[%clk
0:04:31.6]} 21. Kg3 {[%clk 0:04:05]} 21... Qd4 {[%clk 0:04:29.9]} 22. Qg5 {[%clk
0:03:59.1]} 22... Qf2+ {[%clk 0:04:28.9]} 23. Kh3 {[%clk 0:03:56]} 23... Qxg2+
{[%clk 0:04:27.6]} 24. Qxg2 {[%clk 0:03:54.9]} 24... Rxg2 {[%clk 0:04:27.5]} 25.
Kxg2 {[%clk 0:03:54.4]} 25... Rd8 {[%clk 0:04:27.4]} 26. h4 {[%clk 0:03:53.2]}
26... Rd2+ {[%clk 0:04:27.3]} 27. Kg3 {[%clk 0:03:51.2]} 27... Rxc2 {[%clk
0:04:27.2]} 28. Kg4 {[%clk 0:03:49.8]} 28... Rc3 {[%clk 0:04:27.1]} 29. f4
{[%clk 0:03:49.3]} 29... Rxb3 {[%clk 0:04:26.5]} 30. Kg5 {[%clk 0:03:48.9]}
30... Rb4 {[%clk 0:04:26]} 31. Kh6 {[%clk 0:03:47.6]} 31... Rxf4 {[%clk
0:04:25.1]} 32. Kxh7 {[%clk 0:03:46.6]} 32... Rxh4+ {[%clk 0:04:24.4]} 33. Kxg6
{[%clk 0:03:46.2]} 33... Rxa4 {[%clk 0:04:24.3]} 34. Kf5 {[%clk 0:03:45.5]}
34... Rd4 {[%clk 0:04:24.2]} 35. Ke6 {[%clk 0:03:45.2]} 35... Rd6+ {[%clk
0:04:24.1]} 0-1

[Event "Live Chess"]
[Site "Chess.com"]
[Date "2024.06.01"]
[Round "-"]
[White "degringolade64"]
[Black "Duke_of_Bebington"]
[Result "1-0"]
[WhiteElo "2067"]
[BlackElo "1623"]
[TimeControl "300"]
[EndTime "11:21:23 PDT"]
[Termination "degringolade64 won by checkmate"]

1. e4 {[%clk 0:04:56]} 1... e5 {[%clk 0:04:58.9]} 2. Nf3 {[%clk 0:04:54.8]} 2...
f5 {[%clk 0:04:56.5]} 3. Nxe5 {[%clk 0:04:48.5]} 3... Qf6 {[%clk 0:04:46.6]} 4.
d4 {[%clk 0:04:40.6]} 4... d6 {[%clk 0:04:41.2]} 5. Nc4 {[%clk 0:04:36]} 5...
Nc6 {[%clk 0:04:37.3]} 6. d5 {[%clk 0:04:14.8]} 6... Ne5 {[%clk 0:04:29]} 7. Nc3
{[%clk 0:04:06.3]} 7... fxe4 {[%clk 0:04:16.9]} 8. Nxe4 {[%clk 0:03:33.8]} 8...
Qg6 {[%clk 0:04:14.2]} 9. Qd4 {[%clk 0:03:23.8]} 9... Bf5 {[%clk 0:04:07.2]} 10.
Ng3 {[%clk 0:03:09.9]} 10... Nxc4 {[%clk 0:04:00.1]} 11. Qxc4 {[%clk 0:03:09.7]}
11... Bxc2 {[%clk 0:03:59.1]} 12. Be3 {[%clk 0:02:59.2]} 12... Nf6 {[%clk
0:03:49.8]} 13. Rc1 {[%clk 0:02:52.9]} 13... Be4 {[%clk 0:03:29.9]} 14. Nxe4
{[%clk 0:02:42.4]} 14... Qxe4 {[%clk 0:03:27.4]} 15. Qxc7 {[%clk 0:02:34.7]}
15... Nxd5 {[%clk 0:03:17.7]} 16. Bb5# {[%clk 0:02:32.2]} 1-0

[Event "Live Chess"]
[Site "Chess.com"]
[Date "2024.06.01"]
[Round "-"]
[White "updatedopenings2024"]
[Black "grillage"]
[Result "1/2-1/2"]
[WhiteElo "1936"]
[BlackElo "1896"]
[TimeControl "300"]
[EndTime "11:21:26 PDT"]
[Termination "Game drawn by repetition"]

1. e4 {[%clk 0:04:50.2]} 1... d5 {[%clk 0:04:58.4]} 2. exd5 {[%clk 0:04:48.6]}
2... Qxd5 {[%clk 0:04:57.9]} 3. Nf3 {[%clk 0:04:48]} 3... Bg4 {[%clk 0:04:56.2]}
4. Be2 {[%clk 0:04:46.5]} 4... Bxf3 {[%clk 0:04:55.5]} 5. Bxf3 {[%clk
0:04:46.4]} 5... Qe5+ {[%clk 0:04:54.5]} 6. Be2 {[%clk 0:04:43.3]} 6... c5
{[%clk 0:04:52.5]} 7. O-O {[%clk 0:04:41.6]} 7... Nc6 {[%clk 0:04:51.1]} 8. d3
{[%clk 0:04:38.3]} 8... Nf6 {[%clk 0:04:48.1]} 9. Nc3 {[%clk 0:04:38.2]} 9... e6
{[%clk 0:04:43.3]} 10. Re1 {[%clk 0:04:38.1]} 10... Qc7 {[%clk 0:04:41.7]} 11.
Bg5 {[%clk 0:04:30]} 11... Be7 {[%clk 0:04:40.7]} 12. Bf3 {[%clk 0:04:27.1]}
12... O-O {[%clk 0:04:35.6]} 13. Ne4 {[%clk 0:04:24.2]} 13... Nxe4 {[%clk
0:04:07.7]} 14. Bxe7 {[%clk 0:04:24.1]} 14... Nxf2 {[%clk 0:04:00.5]} 15. Qe2
{[%clk 0:04:00.5]} 15... Nh3+ {[%clk 0:03:51.3]} 16. gxh3 {[%clk 0:03:59.4]}
16... Nxe7 {[%clk 0:03:46.7]} 17. Qe4 {[%clk 0:03:51.7]} 17... Rad8 {[%clk
0:03:40.1]} 18. a4 {[%clk 0:03:49.3]} 18... b6 {[%clk 0:03:35.2]} 19. a5 {[%clk
0:03:48.4]} 19... Rd4 {[%clk 0:03:33.5]} 20. Qb7 {[%clk 0:03:46.3]} 20... Qf4
{[%clk 0:03:19.8]} 21. axb6 {[%clk 0:03:38.8]} 21... axb6 {[%clk 0:03:13.6]} 22.
Bg2 {[%clk 0:03:36]} 22... Nf5 {[%clk 0:03:03.6]} 23. Ra8 {[%clk 0:03:23.5]}
23... Rdd8 {[%clk 0:02:32.2]} 24. Rxd8 {[%clk 0:03:16.9]} 24... Rxd8 {[%clk
0:02:31.2]} 25. Qe4 {[%clk 0:03:16.5]} 25... Qg5 {[%clk 0:02:17.7]} 26. Kh1
{[%clk 0:03:07.4]} 26... h6 {[%clk 0:02:06.9]} 27. Bf3 {[%clk 0:02:57.2]} 27...
Rd4 {[%clk 0:02:04.6]} 28. Qe2 {[%clk 0:02:54.7]} 28... Rh4 {[%clk 0:01:50.8]}
29. Rg1 {[%clk 0:02:50.8]} 29... Qf6 {[%clk 0:01:42.1]} 30. Bg4 {[%clk
0:02:46.1]} 30... Nd4 {[%clk 0:01:39]} 31. Qg2 {[%clk 0:02:44.1]} 31... h5
{[%clk 0:01:35]} 32. Bd1 {[%clk 0:02:42.3]} 32... Rf4 {[%clk 0:01:26.8]} 33. c3
{[%clk 0:02:40.3]} 33... Nf3 {[%clk 0:01:22.6]} 34. Rf1 {[%clk 0:02:37.4]} 34...
Nh4 {[%clk 0:00:58.8]} 35. Qa8+ {[%clk 0:02:23.3]} 35... Kh7 {[%clk 0:00:57.1]}
36. Rg1 {[%clk 0:02:22.9]} 36... g6 {[%clk 0:00:52.8]} 37. Bxh5 {[%clk
0:02:14.4]} 37... gxh5 {[%clk 0:00:50.7]} 38. Qg8+ {[%clk 0:02:12.7]} 38... Kh6
{[%clk 0:00:50.1]} 39. Qf8+ {[%clk 0:02:11.9]} 39... Kh7 {[%clk 0:00:47.2]} 40.
Qg8+ {[%clk 0:02:05.5]} 40... Kh6 {[%clk 0:00:46.2]} 41. Qf8+ {[%clk 0:01:57.8]}
41... Kh7 {[%clk 0:00:45.3]} 42. Qg8+ {[%clk 0:01:57.7]} 1/2-1/2

[Event "Live Chess"]
[Site "Chess.com"]
[Date "2024.06.01"]
[Round "-"]
[White "Andysav3"]
[Black "booktrunk"]
[Result "1-0"]
[WhiteElo "1861"]
[BlackElo "1377"]
[TimeControl "300"]
[EndTime "11:21:27 PDT"]
[Termination "Andysav3 won by resignation"]

1. e4 {[%clk 0:04:58.1]} 1... b6 {[%clk 0:04:57.3]} 2. d4 {[%clk 0:04:56.6]}
2... Bb7 {[%clk 0:04:52.5]} 3. Nc3 {[%clk 0:04:55.6]} 3... e6 {[%clk 0:04:51.6]}
4. Nf3 {[%clk 0:04:53.7]} 4... h6 {[%clk 0:04:50.7]} 5. Bd3 {[%clk 0:04:48.1]}
5... Bb4 {[%clk 0:04:47.1]} 6. O-O {[%clk 0:04:45.6]} 6... Nf6 {[%clk
0:04:45.7]} 7. e5 {[%clk 0:04:38.4]} 7... Nd5 {[%clk 0:04:34.4]} 8. Ne4 {[%clk
0:04:35.1]} 8... Bf8 {[%clk 0:04:17.9]} 9. c4 {[%clk 0:04:25.8]} 9... Ne7 {[%clk
0:04:16.1]} 10. b3 {[%clk 0:04:13.2]} 10... a5 {[%clk 0:04:10.3]} 11. Bb2 {[%clk
0:04:07.2]} 11... Ng6 {[%clk 0:04:08.5]} 12. Qd2 {[%clk 0:03:54.6]} 12... Be7
{[%clk 0:03:47.6]} 13. a3 {[%clk 0:03:52.8]} 13... d6 {[%clk 0:03:42.5]} 14.
exd6 {[%clk 0:03:35.4]} 14... cxd6 {[%clk 0:03:22.2]} 15. Rad1 {[%clk
0:03:26.9]} 15... O-O {[%clk 0:03:20.2]} 16. Ng3 {[%clk 0:03:22.5]} 16... Bf6
{[%clk 0:03:13.5]} 17. Qe3 {[%clk 0:03:15.5]} 17... Re8 {[%clk 0:03:05.4]} 18.
Nh5 {[%clk 0:03:11.8]} 18... Bg5 {[%clk 0:03:01.2]} 19. Nxg5 {[%clk 0:02:59.7]}
19... Qxg5 {[%clk 0:02:58.9]} 20. Qxg5 {[%clk 0:02:56.8]} 20... hxg5 {[%clk
0:02:57.8]} 21. Bxg6 {[%clk 0:02:50.7]} 21... fxg6 {[%clk 0:02:56.1]} 22. Ng3
{[%clk 0:02:50]} 22... Nd7 {[%clk 0:02:50.3]} 23. Rfe1 {[%clk 0:02:46.5]} 23...
Re7 {[%clk 0:02:45.3]} 24. Ne4 {[%clk 0:02:42.6]} 24... d5 {[%clk 0:02:41.8]}
25. Nxg5 {[%clk 0:02:38.1]} 25... dxc4 {[%clk 0:02:35.8]} 26. bxc4 {[%clk
0:02:36.3]} 26... Rae8 {[%clk 0:02:29.9]} 27. f3 {[%clk 0:02:28.6]} 27... Nf6
{[%clk 0:02:27.4]} 28. Re2 {[%clk 0:02:18.4]} 28... Nh5 {[%clk 0:02:24.5]} 29.
Bc1 {[%clk 0:02:12.3]} 29... Bc8 {[%clk 0:02:21.3]} 30. Rde1 {[%clk 0:02:08.4]}
30... Nf4 {[%clk 0:02:18.7]} 31. Re3 {[%clk 0:02:00.2]} 31... Kf8 {[%clk
0:02:11.6]} 32. g3 {[%clk 0:01:58.3]} 32... Nh5 {[%clk 0:02:08.2]} 33. Kf2
{[%clk 0:01:52.4]} 33... Nf6 {[%clk 0:02:05.8]} 34. Bb2 {[%clk 0:01:47.5]} 34...
Kg8 {[%clk 0:01:52.7]} 35. Re5 {[%clk 0:01:42.2]} 35... Bd7 {[%clk 0:01:43.4]}
36. d5 {[%clk 0:01:40.1]} 36... exd5 {[%clk 0:01:41.2]} 37. Rxe7 {[%clk
0:01:38.8]} 1-0

[Event "Live Chess"]
[Site "Chess.com"]
[Date "2024.06.01"]
[Round "-"]
[White "RamsayFlayer"]
[Black "WelshTiger"]
[Result "0-1"]
[WhiteElo "1960"]
[BlackElo "2532"]
[TimeControl "300"]
[EndTime "11:21:54 PDT"]
[Termination "WelshTiger won by checkmate"]

1. e4 {[%clk 0:04:57.9]} 1... c6 {[%clk 0:04:58.8]} 2. d4 {[%clk 0:04:55]} 2...
d5 {[%clk 0:04:58.1]} 3. Nc3 {[%clk 0:04:54.5]} 3... dxe4 {[%clk 0:04:57.1]} 4.
Nxe4 {[%clk 0:04:54.4]} 4... Nf6 {[%clk 0:04:56.6]} 5. Nxf6+ {[%clk 0:04:53]}
5... exf6 {[%clk 0:04:56.5]} 6. Nf3 {[%clk 0:04:52.4]} 6... Bd6 {[%clk
0:04:51.4]} 7. Bc4 {[%clk 0:04:48.4]} 7... O-O {[%clk 0:04:50.1]} 8. h3 {[%clk
0:04:45.1]} 8... Nd7 {[%clk 0:04:48.5]} 9. O-O {[%clk 0:04:43.4]} 9... b5 {[%clk
0:04:47.1]} 10. Bb3 {[%clk 0:04:41.5]} 10... Nb6 {[%clk 0:04:46]} 11. c3 {[%clk
0:04:40.1]} 11... a5 {[%clk 0:04:44.7]} 12. Be3 {[%clk 0:04:33.7]} 12... a4
{[%clk 0:04:41.4]} 13. Bc2 {[%clk 0:04:32.9]} 13... Nd5 {[%clk 0:04:39.9]} 14.
Qd3 {[%clk 0:04:28.7]} 14... g6 {[%clk 0:04:37.8]} 15. Bh6 {[%clk 0:04:24.2]}
15... Re8 {[%clk 0:04:36.3]} 16. Rfe1 {[%clk 0:04:22.8]} 16... Be6 {[%clk
0:04:28]} 17. Nd2 {[%clk 0:03:53.8]} 17... Bf5 {[%clk 0:04:02.8]} 18. Ne4 {[%clk
0:03:51.6]} 18... Qd7 {[%clk 0:03:44.9]} 19. g4 {[%clk 0:03:36.5]} 19... Bxe4
{[%clk 0:03:42.9]} 20. Rxe4 {[%clk 0:03:34.6]} 20... Rxe4 {[%clk 0:03:40.5]} 21.
Qxe4 {[%clk 0:03:33.8]} 21... Re8 {[%clk 0:03:40.2]} 22. Qd3 {[%clk 0:03:30.7]}
22... Bf4 {[%clk 0:03:37.9]} 23. Bxf4 {[%clk 0:03:22.7]} 23... Nxf4 {[%clk
0:03:37.8]} 24. Qf3 {[%clk 0:03:17.5]} 24... g5 {[%clk 0:03:36.9]} 25. Bf5
{[%clk 0:03:04.9]} 25... Qd6 {[%clk 0:03:35.2]} 26. Kf1 {[%clk 0:03:01.1]} 26...
Re2 {[%clk 0:03:28.1]} 27. b3 {[%clk 0:02:37.9]} 27... Qa3 {[%clk 0:03:19.4]}
28. Qxc6 {[%clk 0:02:09.7]} 28... Qb2 {[%clk 0:03:17.8]} 29. Rb1 {[%clk
0:01:37.6]} 29... Rxf2+ {[%clk 0:03:15.9]} 30. Kg1 {[%clk 0:01:36.1]} 30... Rg2+
{[%clk 0:03:15]} 31. Kh1 {[%clk 0:01:30.7]} 31... Rh2+ {[%clk 0:03:13.8]} 32.
Kg1 {[%clk 0:01:28.5]} 32... Qf2# {[%clk 0:03:13.7]} 0-1

[Event "Live Chess"]
[Site "Chess.com"]
[Date "2024.06.01"]
[Round "-"]
[White "GerardATHart"]
[Black "OurKnightAtTheOpera"]
[Result "0-1"]
[WhiteElo "1414"]
[BlackElo "2023"]
[TimeControl "300"]
[EndTime "11:22:04 PDT"]
[Termination "OurKnightAtTheOpera won by resignation"]

1. e4 {[%clk 0:04:54.6]} 1... e5 {[%clk 0:04:59.5]} 2. f4 {[%clk 0:04:51.8]}
2... exf4 {[%clk 0:04:58.5]} 3. Nf3 {[%clk 0:04:50.4]} 3... d5 {[%clk
0:04:58.2]} 4. exd5 {[%clk 0:04:48.3]} 4... Nf6 {[%clk 0:04:57.1]} 5. d4 {[%clk
0:04:46.5]} 5... Nxd5 {[%clk 0:04:55.2]} 6. c4 {[%clk 0:04:44]} 6... Bb4+ {[%clk
0:04:53.1]} 7. Bd2 {[%clk 0:04:41.7]} 7... Ne3 {[%clk 0:04:52.3]} 8. Qc1 {[%clk
0:04:40.1]} 8... Nc6 {[%clk 0:04:18.8]} 9. Nc3 {[%clk 0:04:29]} 9... Nxd4 {[%clk
0:04:11.8]} 10. Nxd4 {[%clk 0:03:57]} 10... Qxd4 {[%clk 0:04:11.7]} 11. Bxe3
{[%clk 0:03:55.3]} 11... fxe3 {[%clk 0:04:04.5]} 0-1